[Event "RUS-ch Women Blitz 2019"]
[Site "Sochi"]
[Date "2019.10.20"]
[Round "4.5"]
[White "Ambartsumova, Karina"]
[Black "Zhurova, Anna"]
[Result "1/2-1/2"]
[ECO "A16"]
[WhiteElo "2341"]
[BlackElo "1987"]
[Annotator "NA"]
[PlyCount "154"]
[EventDate "2019.10.17"]
[EventType "swiss"]
[EventCountry "RUS"]
[SourceTitle "playchess.com"]
[Source "ChessBase"]
[SourceQuality "1"]
[TimeControl "180+2"]

1. c4 {[%emt 0:00:00]} Nf6 {[%emt 0:00:00]} 2. Nc3 {[%emt 0:00:02]} d5 {[%emt 0:00:01]} 3. cxd5 {[%emt 0:00:03]} Nxd5 {[%emt 0:00:01]} 4. Nf3 {[%emt 0:00:02]} g6 {[%emt 0:00:03]} 5. Qb3 {[%emt 0:00:04]} Nxc3 {[%emt 0:00:04]} 6. bxc3 {[%emt 0:00:06]} Bg7 {[%emt 0:00:02]} 7. d4 {[%emt 0:00:05]} O-O {[%emt 0:00:05]} 8. e3 {[%emt 0:00:08]} c5 {[%emt 0:00:05]} 9. Be2 {[%emt 0:00:05]} cxd4 {[%emt 0:00:22]} 10. cxd4 {[%emt 0:00:04]} Nc6 {[%emt 0:00:09]} 11. Bb2 {[%emt 0:00:02]} e5 {[%emt 0:00:04]} 12. O-O {[%emt 0:00:32]} exd4 {[%emt 0:00:02]} 13. Rfd1 {[%emt 0:00:02]} Be6 {[%emt 0:00:07]} 14. Qa3 {[%emt 0:00:12]} Qb6 {[%emt 0:00:17]} 15. Nxd4 {[%emt 0:00:02]} Nxd4 {[%emt 0:00:01]} 16. Bxd4 {[%emt 0:00:01]} Bxd4 {[%emt 0:00:04]} 17. Rxd4 {[%emt 0:00:06]} Rfd8 {[%emt 0:00:08]} 18. Rb4 {[%emt 0:00:02]} Qd6 {[%emt 0:00:08]} 19. Qb2 {[%emt 0:00:04]} b6 {[%emt 0:00:07]} 20. Rd4 {[%emt 0:00:04]} Qe7 {[%emt 0:00:11]} 21. Rad1 {[%emt 0:00:03]} Rxd4 {[%emt 0:00:11]} 22. exd4 {[%emt 0:00:25]} Bd5 {[%emt 0:00:06]} 23. Bf1 {[%emt 0:00:07]} Rd8 {[%emt 0:00:05]} 24. a3 {[%emt 0:00:09]} Qg5 {[%emt 0:00:13]} 25. h3 {[%emt 0:00:14]} Be6 {[%emt 0:00:06]} 26. Qd2 {[%emt 0:00:11]} Qxd2 {[%emt 0:00:14]} 27. Rxd2 {[%emt 0:00:00]} Bd5 {[%emt 0:00:00]} 28. Rc2 {[%emt 0:00:21]} Be6 {[%emt 0:00:14]} 29. Rd2 {[%emt 0:00:08]} Kf8 {[%emt 0:00:07]} 30. Ba6 {[%emt 0:00:07]} Bd5 {[%emt 0:00:03]} 31. Rc2 {[%emt 0:00:04]} Be6 {[%emt 0:00:06]} 32. Rd2 {[%emt 0:00:01]} Bd5 {[%emt 0:00:00]} 33. f3 {[%emt 0:00:04]} Rd6 {[%emt 0:00:10]} 34. Kf2 {[%emt 0:00:02]} Rc6 {[%emt 0:00:09]} 35. Bb7 {[%emt 0:00:01]} Rd6 {[%emt 0:00:01]} 36. Bxd5 {[%emt 0:00:02]} Rxd5 {[%emt 0:00:01]} 37. Ke3 {[%emt 0:00:00]} Ke7 {[%emt 0:00:01]} 38. Ke4 {[%emt 0:00:01]} Ra5 {[%emt 0:00:04]} 39. Rd3 {[%emt 0:00:02]} Kd6 {[%emt 0:00:02]} 40. g4 {[%emt 0:00:12]} f5+ {[%emt 0:00:07]} 41. Kf4 {[%emt 0:00:03]} fxg4 {[%emt 0:00:02]} 42. fxg4 {[%emt 0:00:04]} Kd5 {[%emt 0:00:04]} 43. h4 {[%emt 0:00:06]} Ra4 {[%emt 0:00:01]} 44. Ke3 {[%emt 0:00:03]} b5 {[%emt 0:00:04]} 45. h5 {[%emt 0:00:03]} gxh5 {[%emt 0:00:01]} 46. gxh5 {[%emt 0:00:01]} h6 {[%emt 0:00:03]} 47. Rb3 {[%emt 0:00:04]} a6 {[%emt 0:00:00]} 48. Rd3 {[%emt 0:00:01]} a5 {[%emt 0:00:01]} 49. Rb3 {[%emt 0:00:01]} b4 50. axb4 {[%emt 0:00:01]} Rxb4 {[%emt 0:00:06]} 51. Ra3 {[%emt 0:00:07]} a4 {[%emt 0:00:01]} 52. Kf4 {[%emt 0:00:03]} Rxd4+ {[%emt 0:00:11]} 53. Kf5 {[%emt 0:00:00]} Kc5 {[%emt 0:00:02]} 54. Kg6 {[%emt 0:00:04]} Rd6+ {[%emt 0:00:01]} 55. Kg7 {[%emt 0:00:00]} Kb4 {[%emt 0:00:00]} 56. Rf3 {[%emt 0:00:04]} a3 {[%emt 0:00:01]} 57. Rf4+ {[%emt 0:00:05]} Kc3 {[%emt 0:00:04]} 58. Rf3+ {[%emt 0:00:02]} Rd3 {[%emt 0:00:04]} 59. Rf2 {[%emt 0:00:01]} Rd6 {[%emt 0:00:02]} 60. Rf3+ {[%emt 0:00:01]} Kb4 {[%emt 0:00:02]} 61. Rf4+ {[%emt 0:00:00]} Kb3 {[%emt 0:00:02]} 62. Rf3+ {[%emt 0:00:01]} Kb2 {[%emt 0:00:01]} 63. Rf2+ {[%emt 0:00:01]} Kc3 {[%emt 0:00:01]} 64. Rf3+ {[%emt 0:00:00]} Rd3 {[%emt 0:00:05]} 65. Rf2 {[%emt 0:00:02]} Rd2 {[%emt 0:00:01]} 66. Rf3+ {[%emt 0:00:01]} Kb2 {[%emt 0:00:01]} 67. Rf8 {[%emt 0:00:04]} Rd6 {[%emt 0:00:03]} 68. Rf2+ {[%emt 0:00:02]} Kc3 {[%emt 0:00:02]} 69. Rf3+ {[%emt 0:00:01]} Rd3 {[%emt 0:00:00]} 70. Rf2 {[%emt 0:00:04]} Rd2 {[%emt 0:00:00]} 71. Rf3+ {[%emt 0:00:01]} Kb2 {[%emt 0:00:00]} 72. Rxa3 {[%emt 0:00:01]} Kxa3 {[%emt 0:00:00]} 73. Kxh6 {[%emt 0:00:01]} Rg2 {[%emt 0:00:00]} 74. Kh7 {[%emt 0:00:01]} Kb4 {[%emt 0:00:00]} 75. h6 {[%emt 0:00:01]} Kc5 {[%emt 0:00:00]} 76. Kh8 {[%emt 0:00:00]} Kd6 {[%emt 0:00:00]} 77. h7 {[%emt 0:00:01]} Rh2 {[%emt 0:00:00]} 1/2-1/2

[Event "RUS-ch Women Blitz 2019"]
[Site "Sochi"]
[Date "2019.10.17"]
[Round "4.5"]
[White "Murashova, Ekaterina"]
[Black "Shafigullina, Zarina"]
[Result "0-1"]
[ECO "B33"]
[WhiteElo "2248"]
[BlackElo "2295"]
[Annotator "NA"]
[PlyCount "74"]
[EventDate "2019.10.17"]
[EventType "swiss"]
[EventCountry "RUS"]
[SourceTitle "playchess.com"]
[Source "ChessBase"]
[SourceQuality "1"]
[TimeControl "180+2"]

1. e4 {[%emt 0:00:00]} c5 {[%emt 0:00:00]} 2. Nf3 Nc6 3. d4 {[%emt 0:00:01]} cxd4 {[%emt 0:00:00]} 4. Nxd4 {[%emt 0:00:01]} Nf6 {[%emt 0:00:00]} 5. Nc3 {[%emt 0:00:01]} e5 {[%emt 0:00:01]} 6. Ndb5 {[%emt 0:00:01]} d6 {[%emt 0:00:00]} 7. Bg5 a6 8. Na3 {[%emt 0:00:02]} b5 {[%emt 0:00:01]} 9. Nd5 {[%emt 0:00:00]} Be7 {[%emt 0:00:01]} 10. Bxf6 {[%emt 0:00:02]} Bxf6 {[%emt 0:00:01]} 11. c3 {[%emt 0:00:00]} O-O {[%emt 0:00:01]} 12. Nc2 {[%emt 0:00:01]} Rb8 {[%emt 0:00:01]} 13. h4 {[%emt 0:00:13]} Be6 {[%emt 0:00:14]} 14. Nxf6+ {[%emt 0:00:39]} gxf6 {[%emt 0:00:01]} 15. Qh5 {[%emt 0:00:20]} Kh8 {[%emt 0:00:38]} 16. Ne3 {[%emt 0:00:09]} Rg8 {[%emt 0:00:03]} 17. Rd1 {[%emt 0:00:12]} Ne7 {[%emt 0:00:04]} 18. g3 {[%emt 0:00:08]} Qd7 {[%emt 0:00:13]} 19. Qe2 {[%emt 0:00:18]} f5 {[%emt 0:00:15]} 20. exf5 {[%emt 0:00:16]} Nxf5 {[%emt 0:00:02]} 21. Bg2 {[%emt 0:00:15]} Nxe3 {[%emt 0:00:14]} 22. Qxe3 {[%emt 0:00:03]} f5 {[%emt 0:00:29]} 23. O-O {[%emt 0:00:17]} f4 {[%emt 0:00:07]} 24. Qd3 {[%emt 0:00:01]} Rbd8 {[%emt 0:00:05]} 25. Rfe1 {[%emt 0:00:06]} Qg7 {[%emt 0:00:06]} 26. Kh2 {[%emt 0:00:08]} Bxa2 {[%emt 0:00:08]} 27. Qf3 {[%emt 0:00:23]} fxg3+ {[%emt 0:00:10]} 28. fxg3 {[%emt 0:00:01]} d5 {[%emt 0:00:04]} 29. Re3 {[%emt 0:00:00]} Bb3 {[%emt 0:00:22]} 30. Ra1 {[%emt 0:00:01]} Rgf8 {[%emt 0:00:06]} 31. Qh5 {[%emt 0:00:04]} e4 {[%emt 0:00:24]} 32. Rxa6 {[%emt 0:00:02]} Rf2 {[%emt 0:00:03]} 33. Rh6 {[%emt 0:00:08]} Rdf8 {[%emt 0:00:06]} 34. Kg1 {[%emt 0:00:00]} Bc2 {[%emt 0:00:03]} 35. Re1 {[%emt 0:00:04]} Bd3 {[%emt 0:00:02]} 36. Ra1 {[%emt 0:00:01]} e3 {[%emt 0:00:03]} 37. Bxd5 {[%emt 0:00:04]} Qxg3+ {[%emt 0:00:02]} 0-1

[Event "RUS-ch Women Blitz 2019"]
[Site "Sochi"]
[Date "2019.10.17"]
[Round "4.6"]
[White "Samigullina, Diana"]
[Black "Karavaeva, Olga"]
[Result "0-1"]
[ECO "D45"]
[WhiteElo "2161"]
[BlackElo "2260"]
[Annotator "NA"]
[PlyCount "106"]
[EventDate "2019.10.17"]
[EventType "swiss"]
[EventCountry "RUS"]
[SourceTitle "playchess.com"]
[Source "ChessBase"]
[SourceQuality "1"]
[TimeControl "180+2"]

1. d4 {[%emt 0:00:00]} d5 {[%emt 0:00:00]} 2. c4 {[%emt 0:00:01]} e6 {[%emt 0:00:00]} 3. e3 {[%emt 0:00:03]} c6 {[%emt 0:00:00]} 4. Nf3 {[%emt 0:00:02]} Nf6 {[%emt 0:00:00]} 5. Nc3 {[%emt 0:00:01]} Nbd7 {[%emt 0:00:01]} 6. Qc2 {[%emt 0:00:03]} Bd6 {[%emt 0:00:02]} 7. b3 {[%emt 0:00:01]} O-O {[%emt 0:00:01]} 8. Bb2 {[%emt 0:00:01]} Qe7 {[%emt 0:00:01]} 9. Bd3 {[%emt 0:00:17]} Ba3 {[%emt 0:00:03]} 10. O-O {[%emt 0:00:07]} a5 {[%emt 0:00:01]} 11. Bxa3 {[%emt 0:00:08]} Qxa3 {[%emt 0:00:02]} 12. c5 {[%emt 0:00:01]} a4 {[%emt 0:00:19]} 13. Nxa4 {[%emt 0:00:05]} Re8 {[%emt 0:00:10]} 14. Ne5 {[%emt 0:00:11]} h6 {[%emt 0:00:06]} 15. f4 {[%emt 0:00:02]} Qb4 {[%emt 0:00:26]} 16. a3 {[%emt 0:00:03]} Qa5 {[%emt 0:00:02]} 17. Nc3 {[%emt 0:00:01]} Qc7 {[%emt 0:00:07]} 18. b4 {[%emt 0:00:01]} b6 {[%emt 0:00:05]} 19. a4 {[%emt 0:00:02]} bxc5 {[%emt 0:00:03]} 20. bxc5 {[%emt 0:00:01]} Ba6 {[%emt 0:00:02]} 21. Rfb1 {[%emt 0:00:08]} Bxd3 {[%emt 0:00:04]} 22. Qxd3 {[%emt 0:00:05]} Ra5 {[%emt 0:00:04]} 23. Rb2 {[%emt 0:00:04]} Nxe5 {[%emt 0:00:27]} 24. fxe5 {[%emt 0:00:01]} Nd7 {[%emt 0:00:02]} 25. Rab1 {[%emt 0:00:01]} Ra7 {[%emt 0:00:02]} 26. Rb4 {[%emt 0:00:11]} Rea8 {[%emt 0:00:10]} 27. Qc2 {[%emt 0:00:04]} Qa5 {[%emt 0:00:06]} 28. Rb7 {[%emt 0:00:08]} Qa6 {[%emt 0:00:03]} 29. Rxa7 {[%emt 0:00:08]} Rxa7 {[%emt 0:00:02]} 30. Rb4 {[%emt 0:00:21]} g6 {[%emt 0:00:07]} 31. Ne2 {[%emt 0:00:17]} Rb7 {[%emt 0:00:08]} 32. Rxb7 {[%emt 0:00:14]} Qxb7 {[%emt 0:00:01]} 33. Nf4 {[%emt 0:00:04]} Kg7 {[%emt 0:00:07]} 34. Nd3 {[%emt 0:00:05]} Nb8 {[%emt 0:00:19]} 35. Qb2 {[%emt 0:00:04]} Qa6 {[%emt 0:00:05]} 36. Qb3 {[%emt 0:00:06]} Nd7 {[%emt 0:00:08]} 37. Kf2 {[%emt 0:00:03]} Qa5 {[%emt 0:00:01]} 38. Qb4 {[%emt 0:00:03]} Qa6 {[%emt 0:00:00]} 39. a5 {[%emt 0:00:04]} Qxd3 {[%emt 0:00:03]} 40. Qb7 {[%emt 0:00:07]} Nf8 {[%emt 0:00:23]} 41. a6 {[%emt 0:00:02]} Qd2+ {[%emt 0:00:03]} 42. Kf3 {[%emt 0:00:10]} Qd1+ {[%emt 0:00:02]} 43. Kf2 {[%emt 0:00:01]} Qd2+ {[%emt 0:00:04]} 44. Kf3 {[%emt 0:00:01]} g5 {[%emt 0:00:07]} 45. h3 {[%emt 0:00:30]} h5 {[%emt 0:00:02]} 46. a7 {[%emt 0:00:02]} g4+ {[%emt 0:00:03]} 47. hxg4 {[%emt 0:00:01]} hxg4+ {[%emt 0:00:01]} 48. Kg3 {[%emt 0:00:02]} Qxe3+ {[%emt 0:00:02]} 49. Kh2 {[%emt 0:00:01]} g3+ {[%emt 0:00:03]} 50. Kh3 {[%emt 0:00:01]} Ng6 {[%emt 0:00:10]} 51. a8=Q {[%emt 0:00:08]} Qh6+ {[%emt 0:00:03]} 52. Kxg3 {[%emt 0:00:02]} Qf4+ {[%emt 0:00:00]} 53. Kh3 {[%emt 0:00:03]} Qh4# {[%emt 0:00:01]} 0-1

[Event "RUS-ch Women Blitz 2019"]
[Site "Sochi"]
[Date "2019.10.17"]
[Round "4.8"]
[White "Vifleemskaia, Svetlana"]
[Black "Tomilova, Elena"]
[Result "1/2-1/2"]
[ECO "E46"]
[WhiteElo "1978"]
[BlackElo "2345"]
[Annotator "NA"]
[PlyCount "178"]
[EventDate "2019.10.17"]
[EventType "swiss"]
[EventCountry "RUS"]
[SourceTitle "playchess.com"]
[Source "ChessBase"]
[SourceQuality "1"]
[TimeControl "180+2"]

1. d4 {[%emt 0:00:00]} Nf6 {[%emt 0:00:00]} 2. c4 {[%emt 0:00:02]} e6 {[%emt 0:00:02]} 3. Nc3 {[%emt 0:00:02]} Bb4 {[%emt 0:00:02]} 4. e3 {[%emt 0:00:02]} O-O {[%emt 0:00:02]} 5. Nge2 {[%emt 0:00:02]} c6 {[%emt 0:00:02]} 6. a3 {[%emt 0:00:02]} Ba5 {[%emt 0:00:02]} 7. g3 {[%emt 0:00:26]} d5 {[%emt 0:00:05]} 8. c5 {[%emt 0:00:21]} Ne4 {[%emt 0:00:17]} 9. Bg2 {[%emt 0:00:11]} Nxc3 {[%emt 0:00:15]} 10. Nxc3 {[%emt 0:00:09]} Nd7 {[%emt 0:00:06]} 11. f4 {[%emt 0:00:11]} f6 {[%emt 0:00:18]} 12. O-O {[%emt 0:00:16]} e5 {[%emt 0:00:13]} 13. b4 {[%emt 0:00:45]} Bc7 {[%emt 0:00:02]} 14. e4 {[%emt 0:00:05]} exd4 {[%emt 0:00:12]} 15. Qxd4 {[%emt 0:00:06]} dxe4 {[%emt 0:00:07]} 16. Nxe4 {[%emt 0:00:03]} Re8 {[%emt 0:00:23]} 17. Bb2 {[%emt 0:00:05]} Nf8 {[%emt 0:00:04]} 18. Nd6 {[%emt 0:00:15]} Bxd6 {[%emt 0:00:06]} 19. cxd6 {[%emt 0:00:01]} Bd7 {[%emt 0:00:10]} 20. Rad1 {[%emt 0:00:02]} Qb6 {[%emt 0:00:03]} 21. Rfe1 {[%emt 0:00:07]} Ne6 $16 {[%emt 0:00:24]} ({Better is} 21... Kf7 $14) 22. Qf2 {[%emt 0:00:07]} Qxf2+ {[%emt 0:00:09]} 23. Kxf2 {[%emt 0:00:01]} a6 {[%emt 0:00:07]} 24. h4 {[%emt 0:00:06]} Kf7 {[%emt 0:00:07]} 25. f5 {[%emt 0:00:10]} Nf8 {[%emt 0:00:08]} 26. g4 {[%emt 0:00:02]} g6 {[%emt 0:00:03]} 27. fxg6+ {[%emt 0:00:08]} hxg6 {[%emt 0:00:05]} 28. Kg3 {[%emt 0:00:00]} a5 {[%emt 0:00:05]} 29. Bc3 {[%emt 0:00:03]} axb4 {[%emt 0:00:01]} 30. Bxb4 {[%emt 0:00:01]} Rxe1 {[%emt 0:00:08]} 31. Rxe1 {[%emt 0:00:01]} Re8 {[%emt 0:00:02]} 32. Re7+ {[%emt 0:00:01]} Rxe7 {[%emt 0:00:03]} 33. dxe7 {[%emt 0:00:01]} Ne6 {[%emt 0:00:03]} 34. h5 {[%emt 0:00:02]} gxh5 {[%emt 0:00:03]} 35. gxh5 {[%emt 0:00:01]} c5 {[%emt 0:00:01]} 36. Bc3 {[%emt 0:00:05]} b5 {[%emt 0:00:03]} 37. h6 {[%emt 0:00:02]} Ng5 {[%emt 0:00:03]} 38. Bd5+ {[%emt 0:00:04]} Kxe7 {[%emt 0:00:03]} 39. Kf4 {[%emt 0:00:02]} Kd6 {[%emt 0:00:02]} 40. Bg8 {[%emt 0:00:02]} Be6 {[%emt 0:00:03]} 41. h7 {[%emt 0:00:02]} Nxh7 {[%emt 0:00:03]} 42. Bxh7 {[%emt 0:00:00]} Kd5 {[%emt 0:00:00]} 43. Bxf6 {[%emt 0:00:01]} Kc4 {[%emt 0:00:02]} 44. Be7 {[%emt 0:00:01]} b4 {[%emt 0:00:02]} 45. axb4 {[%emt 0:00:01]} cxb4 {[%emt 0:00:01]} 46. Bf6 {[%emt 0:00:04]} b3 {[%emt 0:00:03]} 47. Ke3 {[%emt 0:00:01]} Bd5 {[%emt 0:00:02]} 48. Kd2 {[%emt 0:00:01]} Be6 {[%emt 0:00:02]} 49. Kc1 {[%emt 0:00:01]} Kb4 {[%emt 0:00:02]} 50. Kb2 {[%emt 0:00:00]} Bf7 {[%emt 0:00:02]} 51. Bd3 {[%emt 0:00:02]} Be6 {[%emt 0:00:02]} 52. Be2 {[%emt 0:00:01]} Bf7 {[%emt 0:00:01]} 53. Be7+ {[%emt 0:00:01]} Ka5 {[%emt 0:00:02]} 54. Kc3 {[%emt 0:00:01]} Kb6 {[%emt 0:00:03]} 55. Ba3 {[%emt 0:00:03]} Kc6 {[%emt 0:00:03]} 56. Kb4 {[%emt 0:00:02]} Kb6 {[%emt 0:00:02]} 57. Bf3 {[%emt 0:00:02]} Kc7 {[%emt 0:00:04]} 58. Kc5 {[%emt 0:00:01]} Kd7 {[%emt 0:00:03]} 59. Bb2 {[%emt 0:00:02]} Kc7 {[%emt 0:00:01]} 60. Be5+ {[%emt 0:00:02]} Kd7 {[%emt 0:00:00]} 61. Bg4+ {[%emt 0:00:01]} Be6 {[%emt 0:00:01]} 62. Bd1 {[%emt 0:00:01]} Bf7 {[%emt 0:00:01]} 63. Be2 {[%emt 0:00:02]} Bg8 {[%emt 0:00:01]} 64. Bb2 {[%emt 0:00:02]} Bf7 {[%emt 0:00:01]} 65. Bb5+ {[%emt 0:00:01]} Ke7 {[%emt 0:00:02]} 66. Bd3 {[%emt 0:00:04]} Kd7 {[%emt 0:00:02]} 67. Bf5+ {[%emt 0:00:03]} Be6 68. Be4 Bf7 {[%emt 0:00:03]} 69. Kd4 {[%emt 0:00:02]} Be6 70. Ke5 Bg8 {[%emt 0:00:06]} 71. Bf5+ {[%emt 0:00:02]} Kc6 {[%emt 0:00:01]} 72. Kd4 {[%emt 0:00:01]} Bf7 {[%emt 0:00:04]} 73. Ba3 {[%emt 0:00:00]} Bg8 {[%emt 0:00:01]} 74. Bd3 {[%emt 0:00:03]} Bf7 {[%emt 0:00:02]} 75. Be4+ {[%emt 0:00:03]} Kd7 {[%emt 0:00:01]} 76. Ke5 {[%emt 0:00:03]} b2 {[%emt 0:00:02]} 77. Bxb2 {[%emt 0:00:01]} Bg8 {[%emt 0:00:04]} 78. Ba3 {[%emt 0:00:02]} Bf7 {[%emt 0:00:02]} 79. Kf6 {[%emt 0:00:03]} Bg8 {[%emt 0:00:02]} 80. Ke5 {[%emt 0:00:03]} Bf7 {[%emt 0:00:01]} 81. Bd6 {[%emt 0:00:02]} Bg8 {[%emt 0:00:02]} 82. Bf5+ {[%emt 0:00:01]} Kc6 {[%emt 0:00:01]} 83. Be7 {[%emt 0:00:07]} Bf7 {[%emt 0:00:02]} 84. Be4+ {[%emt 0:00:01]} Kd7 {[%emt 0:00:02]} 85. Bc5 {[%emt 0:00:01]} Bg8 {[%emt 0:00:01]} 86. Bb7 {[%emt 0:00:06]} Kc7 {[%emt 0:00:02]} 87. Be4 {[%emt 0:00:03]} Kd7 {[%emt 0:00:01]} 88. Bd6 {[%emt 0:00:00]} Bf7 {[%emt 0:00:02]} 89. Bb4 {[%emt 0:00:05]} Bg8 {[%emt 0:00:01]} 1/2-1/2

[Event "RUS-ch Women Blitz 2019"]
[Site "Sochi"]
[Date "2019.10.17"]
[Round "4.9"]
[White "Koroleva, Evgeniya"]
[Black "Maltsevskaya, Aleksandra"]
[Result "1-0"]
[ECO "A48"]
[WhiteElo "1855"]
[BlackElo "2333"]
[Annotator "NA"]
[PlyCount "87"]
[EventDate "2019.10.17"]
[EventType "swiss"]
[EventCountry "RUS"]
[SourceTitle "playchess.com"]
[Source "ChessBase"]
[SourceQuality "1"]
[TimeControl "180+2"]

1. d4 {[%emt 0:00:00]} Nf6 {[%emt 0:00:00]} 2. Nf3 {[%emt 0:00:00]} g6 {[%emt 0:00:03]} 3. c4 {[%emt 0:00:01]} Bg7 {[%emt 0:00:02]} 4. Nc3 {[%emt 0:00:01]} d6 {[%emt 0:00:01]} 5. e3 {[%emt 0:00:03]} O-O {[%emt 0:00:03]} 6. Be2 {[%emt 0:00:03]} Nbd7 {[%emt 0:00:01]} 7. O-O {[%emt 0:00:02]} e5 {[%emt 0:00:01]} 8. Qc2 {[%emt 0:00:08]} Re8 {[%emt 0:00:27]} 9. a3 {[%emt 0:00:07]} Nf8 {[%emt 0:00:12]} 10. b4 {[%emt 0:00:12]} e4 {[%emt 0:00:01]} 11. Nd2 {[%emt 0:00:01]} Bf5 {[%emt 0:00:01]} 12. Rb1 {[%emt 0:00:22]} h5 {[%emt 0:00:02]} 13. Re1 {[%emt 0:00:29]} N8h7 {[%emt 0:00:03]} 14. Bf1 {[%emt 0:00:04]} Ng5 {[%emt 0:01:32]} 15. Bb2 {[%emt 0:00:10]} Ng4 {[%emt 0:00:17]} 16. h3 {[%emt 0:00:15]} Nxf2 {[%emt 0:00:30]} 17. Kxf2 {[%emt 0:00:11]} Nxh3+ {[%emt 0:00:01]} 18. gxh3 {[%emt 0:00:08]} Qh4+ {[%emt 0:00:01]} 19. Ke2 {[%emt 0:00:25]} Bg4+ {[%emt 0:00:02]} 20. hxg4 {[%emt 0:00:07]} Qxg4+ {[%emt 0:00:01]} 21. Kf2 {[%emt 0:00:12]} Bf6 {[%emt 0:00:02]} 22. Bg2 {[%emt 0:00:12]} h4 {[%emt 0:00:02]} 23. Rh1 {[%emt 0:00:02]} Qg3+ {[%emt 0:00:10]} 24. Kf1 {[%emt 0:00:06]} Qxe3 {[%emt 0:00:02]} 25. Ncxe4 {[%emt 0:00:09]} Bg7 {[%emt 0:00:03]} 26. Re1 {[%emt 0:00:02]} Qf4+ {[%emt 0:00:02]} 27. Nf2 {[%emt 0:00:02]} Rxe1+ {[%emt 0:00:02]} 28. Kxe1 {[%emt 0:00:01]} Re8+ {[%emt 0:00:01]} 29. Kf1 {[%emt 0:00:01]} Re3 {[%emt 0:00:08]} 30. Rh3 {[%emt 0:00:07]} Re7 {[%emt 0:00:03]} 31. Qd3 {[%emt 0:00:03]} Bh6 {[%emt 0:00:02]} 32. Rf3 {[%emt 0:00:03]} Qxd2 {[%emt 0:00:02]} 33. Qxd2 {[%emt 0:00:01]} Bxd2 {[%emt 0:00:02]} 34. Nd3 {[%emt 0:00:02]} f5 {[%emt 0:00:02]} 35. Rf2 {[%emt 0:00:02]} Bg5 {[%emt 0:00:01]} 36. Re2 {[%emt 0:00:01]} Rf7 {[%emt 0:00:01]} 37. Bxb7 {[%emt 0:00:01]} Rh7 {[%emt 0:00:02]} 38. Bd5+ {[%emt 0:00:01]} Kf8 {[%emt 0:00:01]} 39. Kg2 {[%emt 0:00:03]} h3+ {[%emt 0:00:01]} 40. Kh2 {[%emt 0:00:02]} Bf6 {[%emt 0:00:01]} 41. Nf4 {[%emt 0:00:02]} Kg7 {[%emt 0:00:04]} 42. Ne6+ {[%emt 0:00:02]} Kh8 {[%emt 0:00:01]} 43. Re3 {[%emt 0:00:03]} g5 {[%emt 0:00:03]} 44. Rxh3 {[%emt 0:00:01]} 1-0

[Event "RUS-ch Women Blitz 2019"]
[Site "Sochi"]
[Date "2019.10.17"]
[Round "4.10"]
[White "Pogonina, Natalija"]
[Black "Yakimova, Mariya"]
[Result "0-1"]
[ECO "A81"]
[WhiteElo "2479"]
[BlackElo "2276"]
[Annotator "ChessBase"]
[PlyCount "92"]
[EventDate "2019.10.17"]
[EventType "swiss"]
[EventCountry "RUS"]
[SourceTitle "playchess.com"]
[Source "ChessBase"]
[SourceQuality "1"]
[TimeControl "180+2"]

1. d4 {[%emt 0:00:00]} f5 {[%emt 0:00:00]} 2. g3 {[%emt 0:00:05]} Nf6 {[%emt 0:00:00]} 3. Bg2 {[%emt 0:00:01]} e6 {[%emt 0:00:01]} 4. c4 {[%emt 0:00:03]} d5 {[%emt 0:00:01]} 5. Qc2 {[%emt 0:00:03]} c6 {[%emt 0:00:02]} 6. Nf3 {[%emt 0:00:02]} Bd6 {[%emt 0:00:01]} 7. O-O {[%emt 0:00:03]} O-O {[%emt 0:00:02]} 8. b3 {[%emt 0:00:02]} Qe7 {[%emt 0:00:00]} 9. a4 {[%emt 0:00:02]} a5 {[%emt 0:00:01]} 10. Ba3 {[%emt 0:00:04]} Bxa3 {[%emt 0:00:01]} 11. Rxa3 {[%emt 0:00:02]} Na6 {[%emt 0:00:04]} 12. Ra1 {[%emt 0:00:02]} Bd7 {[%emt 0:00:02]} 13. Nc3 {[%emt 0:00:10]} Nb4 {[%emt 0:00:02]} 14. Qb2 {[%emt 0:00:04]} b6 {[%emt 0:00:05]} 15. e3 {[%emt 0:00:04]} Be8 {[%emt 0:00:07]} 16. Ne5 {[%emt 0:00:03]} Nd7 {[%emt 0:00:03]} 17. Na2 {[%emt 0:00:15]} Nxe5 {[%emt 0:00:12]} 18. dxe5 {[%emt 0:00:03]} Na6 {[%emt 0:00:17]} 19. Rac1 {[%emt 0:00:08]} Nc5 {[%emt 0:00:16]} 20. Qc3 {[%emt 0:00:11]} Rc8 {[%emt 0:00:17]} 21. Rc2 {[%emt 0:00:13]} Bg6 {[%emt 0:00:07]} 22. Rb2 {[%emt 0:00:06]} Rfd8 {[%emt 0:00:10]} 23. Nc1 {[%emt 0:00:03]} Na6 {[%emt 0:00:11]} 24. Nd3 {[%emt 0:00:07]} c5 {[%emt 0:00:15]} 25. cxd5 {[%emt 0:00:03]} exd5 {[%emt 0:00:11]} 26. Nf4 {[%emt 0:00:05]} Nb4 {[%emt 0:00:11]} 27. Nxg6 {[%emt 0:00:15]} hxg6 {[%emt 0:00:01]} 28. Rd2 {[%emt 0:00:02]} d4 {[%emt 0:00:04]} 29. Qc4+ {[%emt 0:00:03]} Kh7 {[%emt 0:00:07]} 30. Rfd1 {[%emt 0:00:17]} Qxe5 {[%emt 0:00:16]} 31. Bf1 {[%emt 0:00:07]} Qe7 {[%emt 0:00:09]} 32. exd4 {[%emt 0:00:17]} cxd4 {[%emt 0:00:01]} 33. Qb5 {[%emt 0:00:04]} Qc5 {[%emt 0:00:01]} 34. Bc4 {[%emt 0:00:09]} Rc7 {[%emt 0:00:13]} 35. h4 {[%emt 0:00:09]} Re7 {[%emt 0:00:05]} 36. Re2 {[%emt 0:00:10]} Rxe2 {[%emt 0:00:07]} 37. Bxe2 {[%emt 0:00:01]} Qxb5 {[%emt 0:00:10]} 38. Bxb5 {[%emt 0:00:02]} Kg8 {[%emt 0:00:07]} 39. Kg2 {[%emt 0:00:02]} Na2 {[%emt 0:00:07]} 40. Bc4+ {[%emt 0:00:02]} Kf8 {[%emt 0:00:01]} 41. Kf3 {[%emt 0:00:05]} Nc3 {[%emt 0:00:01]} 42. Rd3 {[%emt 0:00:09]} Ke7 {[%emt 0:00:01]} 43. Kf4 {[%emt 0:00:04]} Kf6 {[%emt 0:00:01]} 44. Rd2 {[%emt 0:00:06]} Ne4 {[%emt 0:00:04]} 45. Rd1 {[%emt 0:00:10]} Nxf2 {[%emt 0:00:04]} 46. Re1 {[%emt 0:00:01]} Ne4 {[%emt 0:00:05]} 0-1